[Event "Mistrovství Čech mládeže 2023 - HD12"]
[Site "Harrachov, Czech Republic"]
[Date "2023.10.23"]
[Round "4.11"]
[White "Gernert, Tomáš"]
[Black "Mrázik, Marek"]
[Result "1/2-1/2"]
[TimeControl "90m + 30s"]
[WhiteElo "1389"]
[BlackElo "1159"]

1. e4 {[%clk 01:30:57]} {[%emt 00:00:03]} e6 {[%clk 01:29:25]} {[%emt
00:02:04]} 2. d4 {[%clk 01:31:20]} {[%emt 00:00:07]} d5 {[%clk 01:28:41]}
{[%emt 00:01:14]} 3. e5 {[%clk 01:30:53]} {[%emt 00:00:58]} c5 {[%clk
01:27:53]} {[%emt 00:01:18]} 4. c3 {[%clk 01:31:18]} {[%emt 00:00:04]} Nc6
{[%clk 01:27:14]} {[%emt 00:01:10]} 5. Nf3 {[%clk 01:31:30]} {[%emt 00:00:17]}
Qb6 {[%clk 01:25:43]} {[%emt 00:02:00]} 6. Bd3 {[%clk 01:30:50]} {[%emt
00:01:12]} Bd7 {[%clk 01:24:25]} {[%emt 00:01:47]} 7. Bc2 {[%clk 01:30:54]}
{[%emt 00:00:26]} Nh6 {[%clk 01:20:39]} {[%emt 00:04:17]} 8. O-O {[%clk
01:30:44]} {[%emt 00:00:40]} Be7 {[%clk 01:19:38]} {[%emt 00:01:30]} 9. Bxh6
{[%clk 01:27:48]} {[%emt 00:03:27]} gxh6 {[%clk 01:19:39]} {[%emt 00:00:29]} 10.
b3 {[%clk 01:27:34]} {[%emt 00:00:44]} O-O-O {[%clk 01:17:42]} {[%emt
00:02:26]} 11. a4 {[%clk 01:27:14]} {[%emt 00:00:51]} f6 {[%clk 01:09:59]}
{[%emt 00:08:13]} 12. Qd2 {[%clk 01:26:05]} {[%emt 00:01:39]} fxe5 {[%clk
01:08:54]} {[%emt 00:01:35]} 13. Nxe5 {[%clk 01:24:10]} {[%emt 00:02:25]} Nxe5
{[%clk 01:06:12]} {[%emt 00:03:12]} 14. dxe5 {[%clk 01:24:18]} {[%emt
00:00:21]} Bg5 {[%clk 01:04:24]} {[%emt 00:02:18]} 15. a5 {[%clk 01:24:11]}
{[%emt 00:00:38]} Qc7 {[%clk 01:01:54]} {[%emt 00:02:59]} 16. Qd3 {[%clk
01:21:37]} {[%emt 00:03:04]} a6 {[%clk 01:01:25]} {[%emt 00:00:59]} 17. Qe2
{[%clk 01:19:40]} {[%emt 00:02:28]} Bb5 {[%clk 00:59:28]} {[%emt 00:02:27]} 18.
c4 {[%clk 01:19:08]} {[%emt 00:01:02]} dxc4 {[%clk 00:58:12]} {[%emt 00:01:46]}
19. bxc4 {[%clk 01:19:30]} {[%emt 00:00:08]} Bc6 {[%clk 00:57:56]} {[%emt
00:00:45]} 20. f4 {[%clk 01:18:54]} {[%emt 00:01:06]} Bh4 {[%clk 00:52:54]}
{[%emt 00:05:33]} 21. Nc3 {[%clk 01:16:34]} {[%emt 00:02:49]} Rhg8 {[%clk
00:48:31]} {[%emt 00:04:54]} 22. Ne4 {[%clk 01:16:52]} {[%emt 00:00:12]} Qg7
{[%clk 00:41:11]} {[%emt 00:07:50]} 23. g3 {[%clk 01:15:37]} {[%emt 00:01:44]}
Bxe4 {[%clk 00:35:16]} {[%emt 00:06:26]} 24. Bxe4 {[%clk 01:15:26]} {[%emt
00:00:41]} 1/2-1/2

[Event "Mistrovství Čech mládeže 2023 - HD12"]
[Site "Harrachov, Czech Republic"]
[Date "2023.10.23"]
[Round "4.12"]
[White "Pádivý, Jan"]
[Black "Černý, Rodan"]
[Result "0-1"]
[TimeControl "90m + 30s"]
[WhiteElo "1228"]
[BlackElo "1383"]

1. d4 {[%clk 01:30:59]} {[%emt 00:00:01]} d5 {[%clk 01:30:58]} {[%emt
00:00:02]} 2. c4 {[%clk 01:31:18]} {[%emt 00:00:11]} e6 {[%clk 01:31:26]}
{[%emt 00:00:02]} 3. Nc3 {[%clk 01:30:38]} {[%emt 00:01:10]} c5 {[%clk
01:31:50]} {[%emt 00:00:06]} 4. Nf3 {[%clk 01:30:50]} {[%emt 00:00:18]} Nc6
{[%clk 01:31:25]} {[%emt 00:00:55]} 5. Bf4 {[%clk 01:30:47]} {[%emt 00:00:29]}
Nf6 {[%clk 01:31:31]} {[%emt 00:00:28]} 6. e3 {[%clk 01:29:54]} {[%emt
00:01:22]} a6 {[%clk 01:31:46]} {[%emt 00:00:17]} 7. Qc2 {[%clk 01:25:14]}
{[%emt 00:05:07]} Be7 {[%clk 01:29:51]} {[%emt 00:02:26]} 8. a3 {[%clk
01:16:26]} {[%emt 00:09:18]} O-O {[%clk 01:27:57]} {[%emt 00:02:23]} 9. Rd1
{[%clk 01:12:25]} {[%emt 00:04:27]} Qa5 {[%clk 01:25:14]} {[%emt 00:03:19]} 10.
dxc5 {[%clk 01:04:40]} {[%emt 00:08:13]} Qxc5 {[%clk 01:24:51]} {[%emt
00:00:55]} 11. b4 {[%clk 01:04:31]} {[%emt 00:00:40]} Qa7 {[%clk 01:23:35]}
{[%emt 00:01:45]} 12. cxd5 {[%clk 01:03:02]} {[%emt 00:02:00]} exd5 {[%clk
01:23:21]} {[%emt 00:00:43]} 13. Nxd5 {[%clk 01:03:08]} {[%emt 00:00:24]} Nxd5
{[%clk 01:23:33]} {[%emt 00:00:17]} 14. Rxd5 {[%clk 01:02:22]} {[%emt
00:01:17]} Be6 {[%clk 01:23:34]} {[%emt 00:00:29]} 15. Rd1 {[%clk 00:56:02]}
{[%emt 00:06:10]} Rac8 {[%clk 01:23:49]} {[%emt 00:00:54]} 16. Qb1 {[%clk
00:54:11]} {[%emt 00:02:05]} Bf6 {[%clk 01:19:24]} {[%emt 00:05:11]} 17. Rc1
{[%clk 00:49:34]} {[%emt 00:05:05]} a5 {[%clk 01:16:00]} {[%emt 00:03:57]} 18.
Bd3 {[%clk 00:47:31]} {[%emt 00:02:24]} axb4 {[%clk 01:13:51]} {[%emt
00:02:48]} 19. axb4 {[%clk 00:47:12]} {[%emt 00:00:49]} Nxb4 {[%clk 01:13:54]}
{[%emt 00:00:27]} 20. O-O {[%clk 00:47:09]} {[%emt 00:00:28]} Nxd3 {[%clk
01:12:37]} {[%emt 00:01:51]} 21. Qxd3 {[%clk 00:45:51]} {[%emt 00:01:42]} Rfd8
{[%clk 01:11:53]} {[%emt 00:01:21]} 22. Rxc8 {[%clk 00:45:07]} Rxc8 {[%clk
01:12:17]} {[%emt 00:01:20]} 23. Rd1 {[%clk 00:43:13]} {[%emt 00:02:24]} h6
{[%clk 01:11:17]} {[%emt 00:01:30]} 24. h3 {[%clk 00:39:59]} {[%emt 00:03:41]}
Qa6 {[%clk 01:10:11]} {[%emt 00:01:39]} 25. Qe4 {[%clk 00:38:36]} {[%emt
00:01:17]} Rc4 {[%clk 01:09:13]} {[%emt 00:02:04]} 26. Qb1 {[%clk 00:36:06]}
{[%emt 00:02:47]} Ra4 {[%clk 01:01:38]} {[%emt 00:08:16]} 27. Be5 {[%clk
00:35:27]} {[%emt 00:01:11]} Be7 {[%clk 01:01:50]} {[%emt 00:00:18]} 28. Bc7
{[%clk 00:27:20]} {[%emt 00:08:30]} Bf6 {[%clk 00:54:54]} {[%emt 00:07:33]} 29.
Be5 {[%clk 00:27:24]} {[%emt 00:00:24]} Be7 {[%clk 00:54:56]} {[%emt 00:00:29]}
30. Bc7 {[%clk 00:24:50]} {[%emt 00:03:04]} Qc6 {[%clk 00:54:21]} {[%emt
00:01:06]} 31. Bd8 {[%clk 00:21:05]} {[%emt 00:04:11]} Bf8 {[%clk 00:53:27]}
{[%emt 00:01:28]} 32. Nd4 {[%clk 00:19:16]} {[%emt 00:02:18]} Ba2 {[%clk
00:44:23]} {[%emt 00:09:34]} 33. Qb2 {[%clk 00:14:42]} {[%emt 00:04:59]} Qd5
{[%clk 00:42:54]} {[%emt 00:02:04]} 34. Qc2 {[%clk 00:09:08]} {[%emt 00:06:04]}
b5 {[%clk 00:40:43]} {[%emt 00:02:42]} 35. Nf5 {[%clk 00:05:55]} {[%emt
00:03:37]} Qc4 {[%clk 00:35:01]} {[%emt 00:06:18]} 36. Qxc4 {[%clk 00:02:01]}
{[%emt 00:04:22]} Bxc4 {[%clk 00:34:30]} {[%emt 00:01:02]} 37. Ne7+ {[%clk
00:00:35]} {[%emt 00:01:57]} Kh7 {[%clk 00:34:36]} {[%emt 00:00:24]} 38. Nc6
{[%clk 00:00:37]} {[%emt 00:00:28]} Ra6 {[%clk 00:33:59]} {[%emt 00:01:07]} 39.
Ne5 {[%clk 00:00:36]} {[%emt 00:00:31]} Be6 {[%clk 00:33:13]} {[%emt 00:01:16]}
40. Rb1 {[%clk 00:00:34]} {[%emt 00:00:32]} b4 {[%clk 00:32:41]} {[%emt
00:01:02]} 41. Nd3 {[%clk 00:00:48]} {[%emt 00:00:16]} Rd6 {[%clk 00:32:38]}
{[%emt 00:00:33]} 42. Nxb4 {[%clk 00:00:39]} {[%emt 00:00:40]} Rxd8 {[%clk
00:33:01]} {[%emt 00:00:06]} 43. Nc6 {[%clk 00:00:52]} {[%emt 00:00:17]} Rc8
{[%clk 00:33:15]} {[%emt 00:00:16]} 44. Nd4 {[%clk 00:00:38]} {[%emt 00:00:43]}
Bd5 {[%clk 00:33:23]} {[%emt 00:00:23]} 45. Rb5 {[%clk 00:00:34]} {[%emt
00:00:35]} Bd6 {[%clk 00:31:57]} {[%emt 00:01:55]} 46. f3 {[%clk 00:00:34]}
{[%emt 00:00:30]} Rc1+ {[%clk 00:30:50]} {[%emt 00:01:37]} 47. Kf2 {[%clk
00:00:52]} {[%emt 00:00:11]} Bc4 {[%clk 00:30:52]} {[%emt 00:00:29]} 48. e4
{[%clk 00:00:33]} {[%emt 00:00:50]} Bxb5 {[%clk 00:30:19]} {[%emt 00:01:03]} 49.
Nxb5 {[%clk 00:00:42]} {[%emt 00:00:20]} Bf4 {[%clk 00:30:29]} {[%emt
00:00:19]} 50. Nd4 {[%clk 00:00:38]} {[%emt 00:00:34]} Rb1 {[%clk 00:30:26]}
{[%emt 00:00:33]} 51. Nc6 {[%emt 00:00:38]} Rb2+ {[%clk 00:30:31]} {[%emt
00:00:25]} 52. Kf1 {[%clk 00:00:34]} {[%emt 00:00:27]} Bg3 {[%clk 00:30:33]}
{[%emt 00:00:28]} 53. Nd4 {[%clk 00:00:37]} {[%emt 00:00:27]} Rf2+ {[%clk
00:30:35]} {[%emt 00:00:27]} 54. Kg1 {[%clk 00:00:34]} {[%emt 00:00:33]} Rd2
{[%clk 00:30:56]} {[%emt 00:00:10]} 55. Kf1 {[%clk 00:00:38]} {[%emt 00:00:26]}
Rxd4 {[%clk 00:31:07]} {[%emt 00:00:19]} 56. Ke2 {[%clk 00:00:59]} {[%emt
00:00:08]} Bf4 {[%clk 00:31:09]} {[%emt 00:00:29]} 57. h4 {[%clk 00:01:08]}
{[%emt 00:00:21]} Rd2+ {[%clk 00:31:31]} {[%emt 00:00:08]} 58. Ke1 {[%clk
00:01:28]} {[%emt 00:00:08]} Rxg2 {[%clk 00:31:53]} {[%emt 00:00:10]} 59. Kf1
{[%clk 00:01:32]} {[%emt 00:00:26]} Rh2 {[%clk 00:32:11]} {[%emt 00:00:12]} 60.
Kg1 {[%clk 00:01:51]} {[%emt 00:01:16]} Rxh4 {[%clk 00:32:36]} {[%emt
00:00:04]} 61. Kf2 {[%clk 00:02:10]} {[%emt 00:00:11]} Rh2+ {[%clk 00:32:54]}
{[%emt 00:00:13]} 62. Kg1 {[%clk 00:02:22]} {[%emt 00:00:18]} h5 {[%clk
00:33:17]} {[%emt 00:00:07]} 63. e5 {[%clk 00:02:23]} {[%emt 00:00:29]} Bxe5
{[%clk 00:33:38]} {[%emt 00:00:09]} 64. f4 {[%clk 00:02:39]} {[%emt 00:00:15]}
Bxf4 {[%clk 00:33:46]} {[%emt 00:00:21]} 0-1

[Event "Mistrovství Čech mládeže 2023 - HD12"]
[Site "Harrachov, Czech Republic"]
[Date "2023.10.23"]
[Round "4.13"]
[White "Školoud, Natanael"]
[Black "Fadrný, Jáchym"]
[Result "0-1"]
[TimeControl "90m + 30s"]
[WhiteElo "1193"]
[BlackElo "1365"]

1. e4 {[%clk 01:30:58]} {[%emt 00:00:02]} c5 {[%clk 01:30:33]} {[%emt
00:00:27]} 2. Nf3 {[%clk 01:31:23]} {[%emt 00:00:06]} Nc6 {[%clk 01:30:56]}
{[%emt 00:00:06]} 3. c3 {[%clk 01:31:44]} {[%emt 00:00:10]} e6 {[%clk
01:30:08]} {[%emt 00:01:18]} 4. d4 {[%clk 01:31:08]} {[%emt 00:01:05]} cxd4
{[%clk 01:29:00]} {[%emt 00:01:37]} 5. cxd4 {[%clk 01:31:08]} {[%emt 00:00:31]}
d5 {[%clk 01:27:15]} {[%emt 00:02:15]} 6. exd5 {[%clk 01:29:56]} {[%emt
00:01:42]} Qxd5 {[%clk 01:27:19]} {[%emt 00:00:25]} 7. Nc3 {[%clk 01:28:13]}
{[%emt 00:02:14]} Qd8 {[%clk 01:25:57]} {[%emt 00:01:53]} 8. Bc4 {[%clk
01:26:44]} {[%emt 00:01:58]} Nf6 {[%clk 01:25:33]} {[%emt 00:00:53]} 9. O-O
{[%clk 01:26:19]} {[%emt 00:00:56]} Bb4 {[%clk 01:23:14]} {[%emt 00:02:48]} 10.
Bg5 {[%clk 01:23:32]} {[%emt 00:03:18]} h6 {[%clk 01:14:26]} {[%emt 00:09:19]}
11. Bf4 {[%clk 01:13:14]} {[%emt 00:10:48]} a6 {[%clk 01:09:45]} {[%emt
00:05:10]} 12. Qa4 {[%clk 01:02:22]} {[%emt 00:11:22]} Bd7 {[%clk 01:08:05]}
{[%emt 00:02:10]} 13. Qb3 {[%clk 00:59:58]} {[%emt 00:02:54]} Be7 {[%clk
01:02:56]} {[%emt 00:05:39]} 14. Qd1 {[%clk 00:53:20]} {[%emt 00:07:08]} b5
{[%clk 00:57:18]} {[%emt 00:06:08]} 15. Bb3 {[%clk 00:51:59]} {[%emt 00:01:51]}
Na5 {[%clk 00:56:16]} {[%emt 00:01:32]} 16. Bc2 {[%clk 00:51:51]} {[%emt
00:00:38]} Bc6 {[%clk 00:54:14]} {[%emt 00:02:32]} 17. Qd3 {[%clk 00:51:44]}
{[%emt 00:00:38]} b4 {[%clk 00:48:54]} {[%emt 00:05:50]} 18. Na4 {[%clk
00:49:11]} {[%emt 00:03:03]} Bb5 {[%clk 00:46:26]} {[%emt 00:02:57]} 19. Qd2
{[%clk 00:46:01]} {[%emt 00:03:39]} Bxf1 {[%clk 00:46:11]} {[%emt 00:00:46]} 20.
Rxf1 {[%clk 00:46:15]} {[%emt 00:00:16]} O-O {[%clk 00:44:22]} {[%emt
00:02:18]} 21. Qd3 {[%clk 00:46:27]} {[%emt 00:00:19]} Nc6 {[%clk 00:41:15]}
{[%emt 00:03:34]} 22. g4 {[%clk 00:42:25]} {[%emt 00:04:36]} b3 {[%clk
00:37:34]} {[%emt 00:04:10]} 23. Bxb3 {[%clk 00:29:08]} {[%emt 00:13:46]} Nb4
{[%clk 00:31:06]} {[%emt 00:06:59]} 24. Qd2 {[%clk 00:28:00]} {[%emt 00:01:35]}
Nfd5 {[%clk 00:23:56]} {[%emt 00:07:43]} 25. a3 {[%clk 00:26:34]} {[%emt
00:01:56]} Nxf4 {[%clk 00:22:41]} {[%emt 00:01:44]} 26. Qxf4 {[%clk 00:24:14]}
{[%emt 00:02:51]} Nd5 {[%clk 00:20:18]} {[%emt 00:02:53]} 27. Qe4 {[%clk
00:24:19]} {[%emt 00:00:23]} Bd6 {[%clk 00:20:09]} {[%emt 00:00:41]} 28. Bc2
{[%clk 00:24:12]} {[%emt 00:00:37]} g6 {[%clk 00:19:30]} {[%emt 00:01:09]} 29.
h4 {[%clk 00:23:45]} {[%emt 00:00:56]} Nf6 {[%clk 00:18:05]} {[%emt 00:01:55]}
30. Qd3 {[%clk 00:23:44]} {[%emt 00:00:33]} Kh8 {[%clk 00:17:23]} {[%emt
00:01:10]} 31. g5 {[%clk 00:22:07]} {[%emt 00:02:08]} Nh5 {[%clk 00:15:30]}
{[%emt 00:02:23]} 32. gxh6 {[%clk 00:16:38]} {[%emt 00:05:59]} Qc7 {[%clk
00:13:54]} {[%emt 00:02:06]} 33. Ng5 {[%clk 00:14:45]} {[%emt 00:02:23]} Bh2+
{[%clk 00:13:24]} {[%emt 00:01:00]} 34. Kh1 {[%clk 00:14:49]} {[%emt 00:00:26]}
Bf4 {[%clk 00:12:15]} {[%emt 00:01:37]} 35. d5 {[%clk 00:12:25]} {[%emt
00:02:56]} Bxg5 {[%clk 00:11:10]} {[%emt 00:01:35]} 36. hxg5 {[%clk 00:12:44]}
{[%emt 00:00:10]} Rad8 {[%clk 00:10:59]} {[%emt 00:00:41]} 37. Qd4+ {[%clk
00:12:40]} {[%emt 00:00:35]} Kh7 {[%clk 00:10:46]} {[%emt 00:00:41]} 38. Bb1
{[%clk 00:08:36]} {[%emt 00:04:36]} Rxd5 {[%clk 00:10:37]} {[%emt 00:00:38]} 39.
Qh4 {[%clk 00:08:38]} {[%emt 00:00:27]} Kg8 {[%clk 00:09:32]} {[%emt 00:01:34]}
40. Nc3 {[%clk 00:08:47]} {[%emt 00:00:24]} Rd7 {[%clk 00:08:48]} {[%emt
00:01:13]} 41. Ne4 {[%clk 00:07:48]} {[%emt 00:01:30]} Qc6 {[%clk 00:08:14]}
{[%emt 00:01:00]} 42. Kg1 {[%clk 00:07:44]} {[%emt 00:00:38]} f5 {[%clk
00:06:24]} {[%emt 00:02:19]} 43. gxf6 {[%clk 00:07:38]} {[%emt 00:00:36]} Rd4
{[%clk 00:05:43]} {[%emt 00:01:12]} 44. Qg4 {[%clk 00:05:53]} {[%emt 00:02:15]}
Kh8 {[%clk 00:05:20]} {[%emt 00:00:53]} 45. Qxg6 {[%clk 00:05:29]} {[%emt
00:00:55]} Rg8 {[%clk 00:05:33]} {[%emt 00:00:16]} 46. Ng3 {[%clk 00:00:32]}
{[%emt 00:05:27]} Rxg6 {[%clk 00:05:24]} {[%emt 00:00:38]} 47. Bxg6 {[%clk
00:00:47]} {[%emt 00:00:15]} Nf4 {[%clk 00:05:05]} {[%emt 00:00:48]} 48. f3
{[%clk 00:00:34]} {[%emt 00:00:46]} Nxg6 {[%clk 00:05:18]} {[%emt 00:00:16]} 49.
Nh5 {[%clk 00:00:37]} {[%emt 00:00:26]} Qc5 {[%clk 00:04:43]} {[%emt 00:01:01]}
50. Ng3 {[%clk 00:00:39]} {[%emt 00:00:33]} Rd1+ {[%clk 00:04:01]} {[%emt
00:01:12]} 51. Kg2 {[%clk 00:00:49]} {[%emt 00:00:20]} Rxf1 {[%clk 00:04:16]}
{[%emt 00:00:14]} 52. Kxf1 {[%clk 00:01:13]} {[%emt 00:00:06]} Qc1+ {[%clk
00:04:25]} {[%emt 00:00:22]} 53. Kf2 {[%clk 00:01:32]} {[%emt 00:00:11]} Qxb2+
{[%clk 00:04:49]} {[%emt 00:00:06]} 54. Kg1 {[%clk 00:01:22]} {[%emt 00:00:39]}
Nh4 {[%clk 00:04:50]} {[%emt 00:00:29]} 55. Kf1 {[%clk 00:01:19]} {[%emt
00:00:33]} Qg2+ {[%clk 00:04:47]} {[%emt 00:00:32]} 56. Ke1 {[%clk 00:01:43]}
{[%emt 00:00:07]} Qxg3+ {[%clk 00:05:11]} {[%emt 00:00:07]} 57. Kd2 {[%clk
00:01:41]} {[%emt 00:00:32]} Qf4+ {[%clk 00:05:07]} {[%emt 00:00:33]} 58. Kd3
{[%clk 00:01:59]} {[%emt 00:00:12]} Qxf6 {[%clk 00:05:24]} {[%emt 00:00:13]} 59.
Kc4 {[%clk 00:02:01]} {[%emt 00:00:27]} Nxf3 {[%clk 00:05:24]} {[%emt
00:00:31]} 60. Kb4 {[%clk 00:02:12]} {[%emt 00:00:18]} e5 {[%clk 00:05:18]}
{[%emt 00:00:36]} 61. Ka4 {[%clk 00:02:13]} {[%emt 00:00:30]} Nd4 {[%clk
00:04:35]} {[%emt 00:01:13]} 62. h7 {[%clk 00:02:31]} {[%emt 00:00:11]} Qc6+
{[%clk 00:04:38]} {[%emt 00:00:27]} 0-1

[Event "Mistrovství Čech mládeže 2023 - HD12"]
[Site "Harrachov, Czech Republic"]
[Date "2023.10.23"]
[Round "4.14"]
[White "Lutskiy, Mikhail"]
[Black "Sehnoutka, Vít"]
[Result "1-0"]
[TimeControl "90m + 30s"]
[WhiteElo "1353"]
[BlackElo "1041"]

1. e4 {[%clk 01:30:49]} {[%emt 00:00:11]} d5 {[%clk 01:30:55]} {[%emt
00:00:05]} 2. exd5 {[%clk 01:30:45]} {[%emt 00:00:35]} Qxd5 {[%clk 01:31:18]}
{[%emt 00:00:06]} 3. Nc3 {[%clk 01:31:06]} {[%emt 00:00:09]} Qd6 {[%clk
01:31:39]} {[%emt 00:00:09]} 4. Nf3 {[%clk 01:30:58]} {[%emt 00:00:38]} c6
{[%clk 01:31:46]} {[%emt 00:00:23]} 5. d4 {[%clk 01:31:13]} {[%emt 00:00:14]}
Nf6 {[%clk 01:32:04]} {[%emt 00:00:12]} 6. Bc4 {[%clk 01:31:27]} {[%emt
00:00:15]} e6 {[%clk 01:32:20]} {[%emt 00:00:15]} 7. O-O {[%clk 01:31:27]}
{[%emt 00:00:30]} Qc7 {[%clk 01:32:28]} {[%emt 00:00:22]} 8. Re1 {[%clk
01:31:09]} {[%emt 00:00:49]} Be7 {[%clk 01:31:56]} {[%emt 00:01:01]} 9. Bg5
{[%clk 01:30:50]} {[%emt 00:00:49]} Nbd7 {[%clk 01:32:04]} {[%emt 00:00:22]} 10.
Bb3 {[%clk 01:28:56]} {[%emt 00:02:25]} Qd8 {[%clk 01:28:04]} {[%emt 00:04:30]}
11. Ne2 {[%clk 01:27:28]} {[%emt 00:01:57]} O-O {[%clk 01:26:44]} {[%emt
00:01:51]} 12. c4 {[%clk 01:26:15]} {[%emt 00:01:41]} Nb6 {[%clk 01:23:40]}
{[%emt 00:03:34]} 13. Nc3 {[%clk 01:23:42]} {[%emt 00:03:05]} Bb4 {[%clk
01:21:50]} {[%emt 00:02:19]} 14. Qd3 {[%clk 01:22:28]} {[%emt 00:01:42]} Be7
{[%clk 01:19:04]} {[%emt 00:03:19]} 15. Bc2 {[%clk 01:21:39]} {[%emt 00:01:19]}
g6 {[%clk 01:19:20]} {[%emt 00:00:13]} 16. Bh6 {[%clk 01:20:55]} {[%emt
00:01:15]} Re8 {[%clk 01:19:25]} {[%emt 00:00:24]} 17. Ne5 {[%clk 01:19:54]}
{[%emt 00:01:31]} Nbd7 {[%clk 01:17:40]} {[%emt 00:02:15]} 18. Qf3 {[%clk
01:07:51]} {[%emt 00:12:32]} Bf8 {[%clk 01:14:13]} {[%emt 00:03:54]} 19. Bg5
{[%clk 01:07:08]} {[%emt 00:01:15]} Bg7 {[%clk 01:14:22]} {[%emt 00:00:23]} 20.
Nxd7 {[%clk 01:06:58]} {[%emt 00:00:40]} Bxd7 {[%clk 01:14:23]} {[%emt
00:00:31]} 21. Ne4 {[%clk 01:07:11]} {[%emt 00:00:15]} Qa5 {[%clk 00:52:04]}
{[%emt 00:22:49]} 22. Nxf6+ {[%clk 01:06:29]} {[%emt 00:01:13]} Bxf6 {[%clk
00:51:40]} {[%emt 00:00:52]} 23. Qxf6 {[%clk 01:06:38]} {[%emt 00:00:22]} Qd8
{[%clk 00:50:27]} {[%emt 00:01:32]} 24. Qe5 {[%clk 01:06:24]} {[%emt 00:00:55]}
1-0

[Event "Mistrovství Čech mládeže 2023 - HD12"]
[Site "Harrachov, Czech Republic"]
[Date "2023.10.23"]
[Round "4.15"]
[White "Topenčíková, Ellen"]
[Black "Hokr, Matyáš"]
[Result "0-1"]
[TimeControl "90m + 30s"]
[WhiteElo "1018"]
[BlackElo "1352"]

1. e4 {[%clk 01:30:57]} {[%emt 00:00:03]} e6 {[%clk 01:30:54]} {[%emt
00:00:07]} 2. d4 {[%clk 01:31:20]} {[%emt 00:00:06]} d5 {[%clk 01:31:13]}
{[%emt 00:00:12]} 3. exd5 {[%clk 01:31:37]} {[%emt 00:00:13]} exd5 {[%clk
01:31:33]} {[%emt 00:00:10]} 4. Nf3 {[%clk 01:31:18]} {[%emt 00:00:48]} Bd6
{[%clk 01:31:50]} {[%emt 00:00:14]} 5. h3 {[%clk 01:30:42]} {[%emt 00:01:06]}
Nf6 {[%clk 01:31:50]} {[%emt 00:00:30]} 6. Bd3 {[%clk 01:30:42]} {[%emt
00:00:30]} Be6 {[%clk 01:31:42]} {[%emt 00:00:36]} 7. O-O {[%clk 01:30:44]}
{[%emt 00:00:29]} Nc6 {[%clk 01:29:48]} {[%emt 00:02:24]} 8. Nc3 {[%clk
01:28:32]} {[%emt 00:02:42]} h6 {[%clk 01:29:08]} {[%emt 00:01:10]} 9. Re1
{[%clk 01:28:36]} {[%emt 00:00:27]} Qe7 {[%clk 01:27:18]} {[%emt 00:02:20]} 10.
Be3 {[%clk 01:23:47]} {[%emt 00:05:18]} O-O-O {[%clk 01:25:44]} {[%emt
00:02:05]} 11. a4 {[%clk 01:19:34]} {[%emt 00:04:44]} a6 {[%clk 01:22:24]}
{[%emt 00:03:49]} 12. b3 {[%clk 01:13:08]} {[%emt 00:06:55]} Qd7 {[%clk
01:20:21]} {[%emt 00:02:33]} 13. Rb1 {[%clk 01:10:05]} {[%emt 00:03:34]} g5
{[%clk 01:19:02]} {[%emt 00:01:47]} 14. Qd2 {[%clk 01:04:31]} {[%emt 00:06:06]}
Rdg8 {[%clk 01:12:43]} {[%emt 00:06:48]} 15. Rb2 {[%clk 01:03:51]} {[%emt
00:01:11]} Bxh3 {[%clk 01:05:29]} {[%emt 00:07:44]} 16. g3 {[%clk 01:02:27]}
{[%emt 00:01:54]} Bb4 {[%clk 00:57:03]} {[%emt 00:08:55]} 17. Kh2 {[%clk
01:00:42]} {[%emt 00:02:15]} Be6 {[%clk 00:44:25]} {[%emt 00:13:08]} 18. Ne5
{[%clk 00:55:33]} {[%emt 00:05:40]} Nxe5 {[%clk 00:42:51]} {[%emt 00:02:04]} 19.
dxe5 {[%clk 00:54:46]} {[%emt 00:01:14]} Ng4+ {[%clk 00:42:13]} {[%emt
00:01:10]} 20. Kg1 {[%clk 00:53:22]} {[%emt 00:01:53]} Nxe5 {[%clk 00:39:54]}
{[%emt 00:02:50]} 21. Bd4 {[%clk 00:53:10]} {[%emt 00:00:42]} Nf3+ {[%clk
00:40:08]} {[%emt 00:00:16]} 0-1

[Event "Mistrovství Čech mládeže 2023 - HD12"]
[Site "Harrachov, Czech Republic"]
[Date "2023.10.23"]
[Round "4.21"]
[White "Grosser, Filip"]
[Black "Křivka, Lukáš"]
[Result "0-1"]
[TimeControl "90m + 30s"]
[WhiteElo "1050"]
[BlackElo "1386"]

1. e4 {[%clk 01:30:57]} {[%emt 00:00:02]} c6 {[%clk 01:30:44]} {[%emt
00:00:16]} 2. d4 {[%clk 01:30:17]} {[%emt 00:01:09]} d5 {[%clk 01:30:57]}
{[%emt 00:00:17]} 3. exd5 {[%clk 01:30:24]} {[%emt 00:00:23]} cxd5 {[%clk
01:31:20]} {[%emt 00:00:08]} 4. Nf3 {[%clk 01:30:33]} {[%emt 00:00:21]} Nc6
{[%clk 01:31:21]} {[%emt 00:00:28]} 5. Nc3 {[%clk 01:30:34]} {[%emt 00:00:30]}
Bg4 {[%clk 01:31:29]} {[%emt 00:00:22]} 6. Bf4 {[%clk 01:30:51]} {[%emt
00:00:13]} Nf6 {[%clk 01:29:22]} {[%emt 00:02:36]} 7. h3 {[%clk 01:30:08]}
{[%emt 00:01:13]} Bxf3 {[%clk 01:28:09]} {[%emt 00:01:44]} 8. Qxf3 {[%clk
01:30:31]} {[%emt 00:00:06]} Nxd4 {[%clk 01:25:26]} {[%emt 00:03:13]} 9. Qd3
{[%clk 01:30:06]} {[%emt 00:00:55]} Nc6 {[%clk 01:24:36]} {[%emt 00:01:20]} 10.
g3 {[%clk 01:28:42]} {[%emt 00:01:55]} a6 {[%clk 01:21:30]} {[%emt 00:03:37]}
11. Bg2 {[%clk 01:26:44]} {[%emt 00:02:27]} e6 {[%clk 01:12:52]} {[%emt
00:09:08]} 12. a3 {[%clk 01:27:02]} {[%emt 00:00:13]} Bd6 {[%clk 01:09:50]}
{[%emt 00:03:31]} 13. Bxd6 {[%clk 01:22:01]} {[%emt 00:05:30]} Qxd6 {[%clk
01:09:50]} {[%emt 00:00:31]} 14. O-O {[%clk 01:22:14]} {[%emt 00:00:16]} O-O
{[%clk 01:09:17]} {[%emt 00:01:02]} 15. Ne2 {[%clk 01:21:00]} {[%emt 00:01:44]}
Rac8 {[%clk 01:06:46]} {[%emt 00:03:02]} 16. Qd2 {[%clk 01:12:52]} {[%emt
00:08:39]} Rfd8 {[%clk 01:04:33]} {[%emt 00:02:43]} 17. Rac1 {[%clk 00:59:35]}
{[%emt 00:13:46]} Ne5 {[%emt 00:08:23]} 18. f4 {[%emt 00:02:40]} Qb6+ {[%emt
00:00:17]} 19. Kh2 {[%clk 00:54:16]} {[%emt 00:02:26]} Nc4 20. Qd4 {[%emt
00:03:07]} Qxb2 {[%emt 00:00:17]} 21. Qxb2 {[%emt 00:00:10]} Nxb2 {[%clk
00:54:31]} {[%emt 00:00:06]} 22. Rb1 Nc4 {[%emt 00:02:53]} 23. Rxb7 {[%emt
00:00:34]} Nxa3 {[%clk 00:54:34]} {[%emt 00:00:03]} 24. Nd4 {[%clk 00:55:14]}
{[%emt 00:00:25]} Nxc2 {[%clk 00:54:35]} {[%emt 00:00:29]} 25. Nxc2 {[%clk
00:55:35]} {[%emt 00:00:09]} Rxc2 {[%clk 00:54:58]} {[%emt 00:00:07]} 0-1